Workbook

Sheet Summary
B2: Project Information | E2: Sales Comps
B3: Project Name | C3: Desert Wind | E3: Property | F3: Address | G3: Date of Sale | H3: Price | I3: Units | J3: Price per Unit | K3: Price per SF | L3: Distance | M3: Year Built
B4: Address | C4: 4141 West Mcdowell Rd | E4: Marble Creek | F4: 5601 West McDowell Road | Phoenix, Arizona 85035 | G4: 2015-10-01 | H4: 12100000 | I4: 244 | J4: =H4/I4 -> 49590.16393 | K4: 59 | M4: 1985
B5: City, State Zip | C5: Phoenix, AZ | E5: Ventana Palms | F5: 7021 West McDowell Road | Phoenix, Arizona 85035 | G5: 2015-08-01 | H5: 8552000 | I5: 160 | J5: =H5/I5 -> 53450 | K5: 62 | M5: 1989
C6: 85009 | E6: Villa De La Paz | F6: 6041 West Thomas Road | Phoenix, Arizona 85033 | G6: 2015-06-01 | H6: 4900000 | I6: 103 | J6: 47572.81553 | K6: 55 | M6: 1982
B7: Property Type | C7: B | E7: Brookside | F7: 6131 West Thomas Road | Phoenix, Arizona 85033 | G7: 2015-04-01 | H7: 10000000 | I7: 204 | J7: 49019.60784 | K7: 73 | M7: 1984
B8: Year Built | C8: 1987 | E8: Maryland Gardens | F8: 4529 West Ocotillo Road | Glendale, Arizona 85301 | G8: 2015-02-01 | H8: 5100000 | I8: 120 | J8: 42500 | K8: 57 | M8: 1983
B10: Number of Units | C10: 126
B11: Number of Buildings | C11: 28
B12: Acres | C12: 7.12 | E12: Demographics
B13: Covered Parking | C13: 205 | E13: Median Income | G13: White | H13: Asian | I13: Black
B14: Surface Parking | C14: 101 | E14: 28110 | G14: 6501 | H14: 208 | I14: 2232
E15: city-data.com
B16: Current Occupancy | C16: 0.91 | E16: Economics
B17: Holding Period | C17: 7 | E17: Median Home $ | G17: Unemp. | H17: Pop. Growth
E18: 54900 | G18: 0.05 | H18: -0.15
E19: City-data.com | G19: bestplaces.net
E20: School Ratings
E21: Elem. | F21: Middle | G21: H.S. | H21: School District
E22: 1 | F22: 1 | G22: 3 | H22: 2

Sheet Comps
B3: Summary | E3: Year Built | F3: # of Units | G3: Total NRA | H3: Ocpncy | I3: Unit Size (Avg.) | J3: Rent (Avg.) | K3: RPSF (Avg.) | L3: Reno'd | M3: W/D | N3: Pool | O3: Fitness | P3: Club House | Q3: Distance | R3: Median Income | S3: Demographics
D4: Subject Property | E4: 1972 | F4: =H33 -> 216 | G4: =I33 -> 137472 | H4: =G33 -> 0.91 | I4: =AVERAGE(N43:N51) -> 666 | J4: =AVERAGE(O43:O51) -> 595 | K4: =AVERAGE(P43:P51) -> 0.9053205596 | L4: Partial | M4: No | N4: Yes | O4: No | P4: Yes | R4: ='[2]KEY ASSUMPTIONS'!B58 -> 28110 | S4: 92% Hispanic, 4% White, 4% Asian
D5: =C54 -> TIERRA SANTA | E5: =F54 -> 1987 | F5: =H54 -> 274 | G5: =I54 -> 159948 | H5: =G54 -> 0.94 | I5: =H56 -> 583.7518248 | J5: =H58 -> 568.2116788 | K5: =H55 -> 0.9938878969 | L5: No | M5: No | N5: Yes | O5: No | P5: Yes | Q5: =C58 -> 0.6 W | R5: 20932 | S5: 89% Hispanic, 7% White, 3% Black
D6: =C59 -> WHISPERING PALMS | E6: =F59 -> 1985 | F6: =H59 -> 200 | G6: =I59 -> 174464 | H6: =G59 -> 0.95 | I6: =H61 -> 872.32 | J6: =H62 -> 604.52 | K6: =H60 -> 0.7115807567 | L6: Yes | M6: Hookup | N6: Yes | O6: No | P6: NO | Q6: =C62 -> 0.2 SW | R6: 13274 | S6: 81% Hispanic, 7% Indian, 6% White, 4% Black
D7: =C63 -> LOS VECINOS | E7: =F63 -> 1985 | F7: =H63 -> 483 | G7: =I63 -> 222630 | H7: =G63 -> 0.97 | I7: =H65 -> 460.931677 | J7: =H66 -> 439.9668737 | K7: =H64 -> 0.958500115 | L7: No | M7: No | N7: Yes | O7: No | P7: No | Q7: =C66 -> 0.3 NW | R7: 20932 | S7: 89% Hispanic, 7% White, 3% Black
D8: =C68 -> LYNNWOOD | E8: =F68 -> 1980 | F8: =H68 -> 300 | G8: =I68 -> 212880 | H8: =G68 -> 0.9 | I8: =H70 -> 709.6 | J8: =H71 -> 548.76 | K8: =H69 -> 0.7773833549 | L8: YEs | M8: No | N8: No | O8: No | P8: No | Q8: =C71 -> 1.7 W | R8: 18125 | S8: 93% Hispanic, 5% Black, 3% White
D9: =C72 -> CASA SOL | E9: =F72 -> 1985 | F9: =H72 -> 247 | G9: =I72 -> 180180 | H9: =G72 -> 0.9 | I9: =H74 -> 729.4736842 | J9: =H81 -> 555.9230769 | K9: =H73 -> 0.7684713888 | L9: No | M9: No | N9: Yes | O9: No | P9: Yes | Q9: =C81 -> 1.6 N | R9: 13864 | S9: 91% Hispanic, 4% White
D10: =C82 -> MARBLE CREEK | E10: =F82 -> 1985 | F10: =H82 -> 244 | G10: =I82 -> 206080 | H10: =G82 -> 0.95 | I10: =H84 -> 844.5901639 | J10: =H85 -> 607.3770492 | K10: =H83 -> 0.7183957845 | L10: No | M10: No | N10: Yes | O10: No | P10: No | Q10: =C85 -> 1.9 W | R10: 18125 | S10: 93% Hispanic, 5% Black, 3% White
D11: =C86 -> DESERT SKY ESTATES | E11: =F86 -> 1985 | F11: =H86 -> 300 | G11: =I86 -> 216140 | H11: =G86 -> 0.95 | I11: =H88 -> 720.4666667 | J11: =H89 -> 601.04 | K11: =H87 -> 0.8482524942 | M11: No | N11: Yes | O11: Yes | P11: Yes | Q11: =C89 -> 2.7 NW | R11: 20658 | S11: 78% Hispanic, 11% Black, 8% White
D12: =C91 -> 0 | E12: =F91 -> 0 | F12: =H91 -> 0 | G12: =I91 -> 0 | H12: =G91 -> 0 | I12: =H93 ->  | J12: =H94 ->  | K12: =H92 -> 
D13: =C96 -> 0 | E13: =F96 -> 0 | F13: =H96 -> 0 | G13: =I96 -> 0 | H13: =G96 -> 0 | I13: =H98 ->  | J13: =H99 ->  | K13: =H97 -> 
D14: =C100 -> 0 | E14: =F100 -> 0 | F14: =H100 -> 0 | G14: =I100 -> 0 | H14: =G100 -> 0 | I14: =H102 ->  | J14: =H103 ->  | K14: =H101 -> 
D15: =C104 -> 0 | E15: =F104 -> 0 | F15: =H104 -> 0 | G15: =I104 -> 0 | H15: =G104 -> 0 | I15: =H106 ->  | J15: =H107 ->  | K15: =H105 -> 
D16: =C109 -> 0 | E16: =F109 -> 0 | F16: =H109 -> 0 | G16: =I109 -> 0 | H16: =G109 -> 0 | I16: =H111 ->  | J16: =H112 ->  | K16: =H110 -> 
B19: Rental Data | E19: 1 | F19: =E19&"BR/"&G19&"BA" -> 1BR/1BA | G19: 1 | H19: 2 | I19: =H19&"BR/"&J19&"BA" -> 2BR/1BA | J19: 1 | K19: 2 | L19: =K19&"BR/"&M19&"BA" -> 2BR/2BA | M19: 2 | N19: 3 | O19: =N19&"BR/"&P19&"BA" -> 3BR/2BA | P19: 2
E20: Unit Size (Square Feet) | F20: Monthly Rent | G20: Rent PSF | H20: Unit Size (Square Feet) | I20: Monthly Rent | J20: Rent PSF | K20: Unit Size (Square Feet) | L20: Monthly Rent | M20: Rent PSF | N20: Unit Size (Square Feet) | O20: Monthly Rent | P20: Rent PSF
D21: Subject Property | E21: =AVERAGEIF($L$43:$L$51,$E$19,N43:N51) -> 585 | F21: =AVERAGEIF($L$43:$L$51,$E$19,O43:O51) -> 570 | G21: =AVERAGEIF($L$43:$L$51,$E$19,P43:P51) -> 0.9800573994 | H21: =AVERAGE(IF($L$43:$L$51=$H$19,IF($M$43:$M$51=$J$19,N$43:N$51))) -> 716 | I21: =AVERAGE(IF($L$43:$L$51=$H$19,IF($M$43:$M$51=$J$19,O$43:O$51))) -> 605 | J21: =AVERAGE(IF($L$43:$L$51=$H$19,IF($M$43:$M$51=$J$19,P$43:P$51))) -> 0.844972067 | K21: =AVERAGE(IF($L$43:$L$51=$K$19,IF($M$43:$M$51=$M$19,N$43:N$51))) -> 778 | L21: =AVERAGE(IF($L$43:$L$51=$K$19,IF($M$43:$M$51=$M$19,O$43:O$51))) -> 635 | M21: =AVERAGE(IF($L$43:$L$51=$K$19,IF($M$43:$M$51=$M$19,P$43:P$51))) -> 0.8161953728 | N21: =AVERAGE(IF($L$43:$L$51=$N$19,IF($M$43:$M$51=$P$19,N$43:N$51))) ->  | O21: =AVERAGE(IF($L$43:$L$51=$N$19,IF($M$43:$M$51=$P$19,O$43:O$51))) ->  | P21: =AVERAGE(IF($L$43:$L$51=$N$19,IF($M$43:$M$51=$P$19,P$43:P$51))) -> 
B22: COMPS | D22: High | E22: =MAX(IF($L$54:$L$112=E19,$N$54:$N$112)) -> 720 | F22: =MAX(IF($L$54:$L$112=E19,$O$54:$O$112)) -> 587 | G22: =MAX(IF($L$54:$L$112=E19,$P$54:$P$112)) -> 1.154639175 | H22: =MAX(IF($L$54:$L$112=$H$19,IF($M$54:$M$112=$J$19,N$54:N$112))) -> 900 | I22: =MAX(IF($L$54:$L$112=$H$19,IF($M$54:$M$112=$J$19,O$54:O$112))) -> 663 | J22: =MAX(IF($L$54:$L$112=$H$19,IF($M$54:$M$112=$J$19,P$54:P$112))) -> 0.9603174603 | K22: =MAX(IF($L$54:$L$112=$K$19,IF($M$54:$M$112=$M$19,N$54:N$112))) -> 1000 | L22: =MAX(IF($L$54:$L$112=$K$19,IF($M$54:$M$112=$M$19,O$54:O$112))) -> 720 | M22: =MAX(IF($L$54:$L$112=$K$19,IF($M$54:$M$112=$M$19,P$54:P$112))) -> 0.8344283837 | N22: =MAX(IF($L$54:$L$112=$N$19,IF($M$54:$M$112=$P$19,N$54:N$112))) -> 0 | O22: =MAX(IF($L$54:$L$112=$N$19,IF($M$54:$M$112=$P$19,O$54:O$112))) -> 0 | P22: =MAX(IF($L$54:$L$112=$N$19,IF($M$54:$M$112=$P$19,P$54:P$112))) -> 0
D23: Average | E23: =AVERAGEIF($L$54:$L$112,E19,$N$54:$N$112) -> 607.1538462 | F23: =AVERAGEIF($L$54:$L$112,E19,$O$54:$O$112) -> 518.4615385 | G23: =AVERAGEIF($L$54:$L$112,E19,$P$54:$P$112) -> 0.8641233185 | H23: =AVERAGE(IF($L$54:$L$112=$H$19,IF($M$54:$M$112=$J$19,N$54:N$112))) -> 782.5 | I23: =AVERAGE(IF($L$54:$L$112=$H$19,IF($M$54:$M$112=$J$19,O$54:O$112))) -> 607 | J23: =AVERAGE(IF($L$54:$L$112=$H$19,IF($M$54:$M$112=$J$19,P$54:P$112))) -> 0.7827774446 | K23: =AVERAGE(IF($L$54:$L$112=$K$19,IF($M$54:$M$112=$M$19,N$54:N$112))) -> 895.7142857 | L23: =AVERAGE(IF($L$54:$L$112=$K$19,IF($M$54:$M$112=$M$19,O$54:O$112))) -> 651 | M23: =AVERAGE(IF($L$54:$L$112=$K$19,IF($M$54:$M$112=$M$19,P$54:P$112))) -> 0.7302818945 | N23: =AVERAGE(IF($L$54:$L$112=$N$19,IF($M$54:$M$112=$P$19,N$54:N$112))) ->  | O23: =AVERAGE(IF($L$54:$L$112=$N$19,IF($M$54:$M$112=$P$19,O$54:O$112))) ->  | P23: =AVERAGE(IF($L$54:$L$112=$N$19,IF($M$54:$M$112=$P$19,P$54:P$112))) -> 
D24: Low | E24: =MIN(IF($L$54:$L$112=E19,$N$54:$N$112)) -> 485 | F24: =MIN(IF($L$54:$L$112=E19,$O$54:$O$112)) -> 470 | G24: =MIN(IF($L$54:$L$112=E19,$P$54:$P$112)) -> 0.7083333333 | H24: =MIN(IF($L$54:$L$112=$H$19,IF($M$54:$M$112=$J$19,N$54:N$112))) -> 630 | I24: =MIN(IF($L$54:$L$112=$H$19,IF($M$54:$M$112=$J$19,O$54:O$112))) -> 535 | J24: =MIN(IF($L$54:$L$112=$H$19,IF($M$54:$M$112=$J$19,P$54:P$112))) -> 0.698949825 | K24: =MIN(IF($L$54:$L$112=$K$19,IF($M$54:$M$112=$M$19,N$54:N$112))) -> 761 | L24: =MIN(IF($L$54:$L$112=$K$19,IF($M$54:$M$112=$M$19,O$54:O$112))) -> 615 | M24: =MIN(IF($L$54:$L$112=$K$19,IF($M$54:$M$112=$M$19,P$54:P$112))) -> 0.6432926829 | N24: =MIN(IF($L$54:$L$112=$N$19,IF($M$54:$M$112=$P$19,N$54:N$112))) -> 0 | O24: =MIN(IF($L$54:$L$112=$N$19,IF($M$54:$M$112=$P$19,O$54:O$112))) -> 0 | P24: =MIN(IF($L$54:$L$112=$N$19,IF($M$54:$M$112=$P$19,P$54:P$112))) -> 0
B28: Comparable Apartment Complexes
B30: Property Information | N30: Quoted Monthly Rent & Utilities
C31: Property Name | F31: Year Built Renovated | G31: Occupancy Rate (%) | H31: Total Number Of Units | I31: Net Rentable Area | K31: Number Of Units | L31: Bedrooms | M31: Bathrooms | N31: Unit Size (Sq Ft) | O31: Market Rent (Month) | P31: Market Rent (Sq Ft/Month) | Q31: Market Rent With Utilities | R31: Washer Dryer Situation
B32: # | C32: Address, City, State | S32: Comments
B33: Subject | C33: ='[2]Project Dashboard'!G8 -> Desert Wind | F33: ='[2]KEY ASSUMPTIONS'!F10 -> 1987 | G33: ='[2]KEY ASSUMPTIONS'!F18 -> 0.91 | H33: ='[2]KEY ASSUMPTIONS'!D51 -> 216 | I33: ='[2]KEY ASSUMPTIONS'!P51 -> 137472 | J33: Current | K33: =IF('[2]KEY ASSUMPTIONS'!D41>0,'[2]KEY ASSUMPTIONS'!D41,"") -> 88 | L33: =IF('[2]KEY ASSUMPTIONS'!B41>0,'[2]KEY ASSUMPTIONS'!B41,"") -> 1 | M33: =IF('[2]KEY ASSUMPTIONS'!C41>0,'[2]KEY ASSUMPTIONS'!C41,"") -> 1 | N33: =IF('[2]KEY ASSUMPTIONS'!F41>0,'[2]KEY ASSUMPTIONS'!F41,"") -> 535 | O33: =IF('[2]KEY ASSUMPTIONS'!G41>0,'[2]KEY ASSUMPTIONS'!G41,"") -> 442 | P33: =IF(N33<>"",O33/N33,"") -> 0.8261682243 | R33: None | S33: On-Site Laundry Center
C34: ='[2]KEY ASSUMPTIONS'!F6 -> 4141 West Mcdowell Rd | K34: =IF('[2]KEY ASSUMPTIONS'!D42>0,'[2]KEY ASSUMPTIONS'!D42,"") -> 40 | L34: =IF('[2]KEY ASSUMPTIONS'!B42>0,'[2]KEY ASSUMPTIONS'!B42,"") -> 1 | M34: =IF('[2]KEY ASSUMPTIONS'!C42>0,'[2]KEY ASSUMPTIONS'!C42,"") -> 1 | N34: =IF('[2]KEY ASSUMPTIONS'!F42>0,'[2]KEY ASSUMPTIONS'!F42,"") -> 635 | O34: =IF('[2]KEY ASSUMPTIONS'!G42>0,'[2]KEY ASSUMPTIONS'!G42,"") -> 486 | P34: 0.7653543307 | R34: None
C35: ='[2]KEY ASSUMPTIONS'!F7 -> Phoenix, AZ 85009 | K35: =IF('[2]KEY ASSUMPTIONS'!D43>0,'[2]KEY ASSUMPTIONS'!D43,"") -> 56 | L35: =IF('[2]KEY ASSUMPTIONS'!B43>0,'[2]KEY ASSUMPTIONS'!B43,"") -> 2 | M35: =IF('[2]KEY ASSUMPTIONS'!C43>0,'[2]KEY ASSUMPTIONS'!C43,"") -> 1 | N35: =IF('[2]KEY ASSUMPTIONS'!F43>0,'[2]KEY ASSUMPTIONS'!F43,"") -> 716 | O35: =IF('[2]KEY ASSUMPTIONS'!G43>0,'[2]KEY ASSUMPTIONS'!G43,"") -> 532 | P35: 0.7430167598 | R35: None
K36: =IF('[2]KEY ASSUMPTIONS'!D44>0,'[2]KEY ASSUMPTIONS'!D44,"") -> 32 | L36: =IF('[2]KEY ASSUMPTIONS'!B44>0,'[2]KEY ASSUMPTIONS'!B44,"") -> 2 | M36: =IF('[2]KEY ASSUMPTIONS'!C44>0,'[2]KEY ASSUMPTIONS'!C44,"") -> 2 | N36: =IF('[2]KEY ASSUMPTIONS'!F44>0,'[2]KEY ASSUMPTIONS'!F44,"") -> 778 | O36: =IF('[2]KEY ASSUMPTIONS'!G44>0,'[2]KEY ASSUMPTIONS'!G44,"") -> 586 | P36: 0.7532133676 | R36: None
K37: =IF('[2]KEY ASSUMPTIONS'!D45>0,'[2]KEY ASSUMPTIONS'!D45,"") ->  | L37: =IF('[2]KEY ASSUMPTIONS'!B45>0,'[2]KEY ASSUMPTIONS'!B45,"") ->  | M37: =IF('[2]KEY ASSUMPTIONS'!C45>0,'[2]KEY ASSUMPTIONS'!C45,"") ->  | N37: =IF('[2]KEY ASSUMPTIONS'!F45>0,'[2]KEY ASSUMPTIONS'!F45,"") ->  | O37: =IF('[2]KEY ASSUMPTIONS'!G45>0,'[2]KEY ASSUMPTIONS'!G45,"") -> 
K38: =IF('[2]KEY ASSUMPTIONS'!D46>0,'[2]KEY ASSUMPTIONS'!D46,"") ->  | L38: =IF('[2]KEY ASSUMPTIONS'!B46>0,'[2]KEY ASSUMPTIONS'!B46,"") ->  | M38: =IF('[2]KEY ASSUMPTIONS'!C46>0,'[2]KEY ASSUMPTIONS'!C46,"") ->  | N38: =IF('[2]KEY ASSUMPTIONS'!F46>0,'[2]KEY ASSUMPTIONS'!F46,"") ->  | O38: =IF('[2]KEY ASSUMPTIONS'!G46>0,'[2]KEY ASSUMPTIONS'!G46,"") -> 
K39: =IF('[2]KEY ASSUMPTIONS'!D47>0,'[2]KEY ASSUMPTIONS'!D47,"") ->  | L39: =IF('[2]KEY ASSUMPTIONS'!B47>0,'[2]KEY ASSUMPTIONS'!B47,"") ->  | M39: =IF('[2]KEY ASSUMPTIONS'!C47>0,'[2]KEY ASSUMPTIONS'!C47,"") ->  | N39: =IF('[2]KEY ASSUMPTIONS'!F47>0,'[2]KEY ASSUMPTIONS'!F47,"") ->  | O39: =IF('[2]KEY ASSUMPTIONS'!G47>0,'[2]KEY ASSUMPTIONS'!G47,"") -> 
K40: =IF('[2]KEY ASSUMPTIONS'!D48>0,'[2]KEY ASSUMPTIONS'!D48,"") ->  | L40: =IF('[2]KEY ASSUMPTIONS'!B48>0,'[2]KEY ASSUMPTIONS'!B48,"") ->  | M40: =IF('[2]KEY ASSUMPTIONS'!C48>0,'[2]KEY ASSUMPTIONS'!C48,"") ->  | N40: =IF('[2]KEY ASSUMPTIONS'!F48>0,'[2]KEY ASSUMPTIONS'!F48,"") ->  | O40: =IF('[2]KEY ASSUMPTIONS'!G48>0,'[2]KEY ASSUMPTIONS'!G48,"") ->  | P40: =IF(N40<>"",O40/N40,"") -> 
K41: =IF('[2]KEY ASSUMPTIONS'!D49>0,'[2]KEY ASSUMPTIONS'!D49,"") ->  | L41: =IF('[2]KEY ASSUMPTIONS'!B49>0,'[2]KEY ASSUMPTIONS'!B49,"") ->  | M41: =IF('[2]KEY ASSUMPTIONS'!C49>0,'[2]KEY ASSUMPTIONS'!C49,"") ->  | N41: =IF('[2]KEY ASSUMPTIONS'!F49>0,'[2]KEY ASSUMPTIONS'!F49,"") ->  | O41: =IF('[2]KEY ASSUMPTIONS'!G49>0,'[2]KEY ASSUMPTIONS'!G49,"") ->  | P41: =IF(N41<>"",O41/N41,"") -> 
K42: =SUM(K33:K41) -> 216 | N42: =SUMPRODUCT($K33:$K41,N33:N41)/$K42 -> 636.4444444 | O42: =SUMPRODUCT($K33:$K41,O33:O41)/$K42 -> 494.8148148 | P42: =O42/N42 -> 0.7774674115
J43: Target | K43: =IF('[2]KEY ASSUMPTIONS'!D41>0,'[2]KEY ASSUMPTIONS'!D41,"") -> 88 | L43: =IF('[2]KEY ASSUMPTIONS'!B41>0,'[2]KEY ASSUMPTIONS'!B41,"") -> 1 | M43: =IF('[2]KEY ASSUMPTIONS'!C41>0,'[2]KEY ASSUMPTIONS'!C41,"") -> 1 | N43: =IF('[2]KEY ASSUMPTIONS'!F41>0,'[2]KEY ASSUMPTIONS'!F41,"") -> 535 | O43: =IF('[2]KEY ASSUMPTIONS'!J41>0,'[2]KEY ASSUMPTIONS'!J41,"") -> 560 | P43: 1.046728972 | Q43: =O43 -> 560 | R43: None
K44: =IF('[2]KEY ASSUMPTIONS'!D42>0,'[2]KEY ASSUMPTIONS'!D42,"") -> 40 | L44: =IF('[2]KEY ASSUMPTIONS'!B42>0,'[2]KEY ASSUMPTIONS'!B42,"") -> 1 | M44: =IF('[2]KEY ASSUMPTIONS'!C42>0,'[2]KEY ASSUMPTIONS'!C42,"") -> 1 | N44: =IF('[2]KEY ASSUMPTIONS'!F42>0,'[2]KEY ASSUMPTIONS'!F42,"") -> 635 | O44: =IF('[2]KEY ASSUMPTIONS'!J42>0,'[2]KEY ASSUMPTIONS'!J42,"") -> 580 | P44: 0.9133858268 | Q44: =O44 -> 580 | R44: None
K45: =IF('[2]KEY ASSUMPTIONS'!D43>0,'[2]KEY ASSUMPTIONS'!D43,"") -> 56 | L45: =IF('[2]KEY ASSUMPTIONS'!B43>0,'[2]KEY ASSUMPTIONS'!B43,"") -> 2 | M45: =IF('[2]KEY ASSUMPTIONS'!C43>0,'[2]KEY ASSUMPTIONS'!C43,"") -> 1 | N45: =IF('[2]KEY ASSUMPTIONS'!F43>0,'[2]KEY ASSUMPTIONS'!F43,"") -> 716 | O45: =IF('[2]KEY ASSUMPTIONS'!J43>0,'[2]KEY ASSUMPTIONS'!J43,"") -> 605 | P45: 0.844972067 | Q45: =O45 -> 605 | R45: None
K46: =IF('[2]KEY ASSUMPTIONS'!D44>0,'[2]KEY ASSUMPTIONS'!D44,"") -> 32 | L46: =IF('[2]KEY ASSUMPTIONS'!B44>0,'[2]KEY ASSUMPTIONS'!B44,"") -> 2 | M46: =IF('[2]KEY ASSUMPTIONS'!C44>0,'[2]KEY ASSUMPTIONS'!C44,"") -> 2 | N46: =IF('[2]KEY ASSUMPTIONS'!F44>0,'[2]KEY ASSUMPTIONS'!F44,"") -> 778 | O46: =IF('[2]KEY ASSUMPTIONS'!J44>0,'[2]KEY ASSUMPTIONS'!J44,"") -> 635 | P46: 0.8161953728 | Q46: 635 | R46: None
K50: =IF('[2]KEY ASSUMPTIONS'!D48>0,'[2]KEY ASSUMPTIONS'!D48,"") -> 
K51: =IF('[2]KEY ASSUMPTIONS'!D49>0,'[2]KEY ASSUMPTIONS'!D49,"") -> 
K52: =SUM(K43:K51) -> 216 | N52: =SUMPRODUCT($K43:$K51,N43:N51)/$K52 -> 636.4444444 | O52: =SUMPRODUCT($K43:$K51,O43:O51)/$K52 -> 586.4814815 | P52: =O52/N52 -> 0.9214967412 | Q52: =SUMPRODUCT($K43:$K51,Q43:Q51)/$K52 -> 586.4814815
B53: Statistics (Excluding Subject)
B54: 1 | C54: TIERRA SANTA | F54: 1987 | G54: 0.94 | H54: =SUM(K54:K58) -> 274 | I54: =SUMPRODUCT(K54:K58,N54:N58) -> 159948 | K54: 32 | L54: 0 | M54: 1 | N54: 400 | O54: 420 | P54: =O54/N54 -> 1.05 | Q54: =O54 -> 420 | R54: None
C55: 4620 West McDowell Road | H55: =SUMPRODUCT(K54:K58,P54:P58)/H54 -> 0.9938878969 | K55: 80 | L55: 1 | M55: 1 | N55: 485 | O55: 560 | P55: 1.154639175 | Q55: =O55 -> 560 | R55: None
C56: Phoenix, AZ 85035 | H56: =SUMPRODUCT(K54:K58,N54:N58)/H54 -> 583.7518248 | K56: 50 | L56: 1 | M56: 1 | N56: 630 | O56: 565 | P56: 0.8968253968 | Q56: =O56 -> 565 | R56: None
K57: 64 | L57: 2 | M57: 1 | N57: 630 | O57: 605 | P57: 0.9603174603 | Q57: =O57 -> 605 | R57: None
C58: 0.6 W | H58: =SUMPRODUCT(K54:K58,O54:O58)/H54 -> 568.2116788 | K58: 48 | L58: 2 | M58: 2 | N58: 761 | O58: 635 | P58: 0.8344283837 | Q58: =O58 -> 635 | R58: None
B59: 2 | C59: WHISPERING PALMS | F59: 1985 | G59: 0.95 | H59: =SUM(K59:K62) -> 200 | I59: =SUMPRODUCT(K59:K62,N59:N62) -> 174464 | K59: 64 | L59: 1 | M59: 1 | N59: 635 | O59: 544 | P59: 0.8566929134 | Q59: =O59 -> 544 | R59: Hookup
C60: 1401 North 43rd Avenue | H60: =SUMPRODUCT(K59:K62,P59:P62)/H59 -> 0.7115807567 | K60: 136 | L60: 2 | M60: 2 | N60: 984 | O60: 633 | P60: 0.6432926829 | Q60: 633 | R60: Hookup
C61: Phoenix, AZ 85009 | H61: =SUMPRODUCT(K59:K62,N59:N62)/H59 -> 872.32
C62: 0.2 SW | H62: =SUMPRODUCT(K59:K62,O59:O62)/H59 -> 604.52
B63: 3 | C63: LOS VECINOS | F63: 1985 | G63: 0.97 | H63: =SUM(K63:K67) -> 483 | I63: =SUMPRODUCT(K63:K67,N63:N67) -> 222630 | K63: 168 | L63: 0 | M63: 1 | N63: 385 | O63: 378 | P63: =O63/N63 -> 0.9818181818 | Q63: 378 | R63: None
C64: 1950 North 43rd Avenue | H64: =SUMPRODUCT(K63:K67,P63:P67)/H63 -> 0.958500115 | K64: 310 | L64: 1 | M64: 1 | N64: 495 | O64: 470 | P64: 0.9494949495 | Q64: 470 | R64: None
C65: Phoenix, AZ 85009 | H65: =SUMPRODUCT(K63:K67,N63:N67)/H63 -> 460.931677 | K65: 5 | L65: 2 | M65: 1 | N65: 900 | O65: 660 | P65: 0.7333333333 | Q65: 660 | R65: None
C66: 0.3 NW | H66: =SUMPRODUCT(K63:K67,O63:O67)/H63 -> 439.9668737
B68: 4 | C68: LYNNWOOD | F68: 1980 | G68: 0.9 | H68: =SUM(K68:K71) -> 300 | I68: =SUMPRODUCT(K68:K71,N68:N71) -> 212880 | K68: 72 | L68: 1 | M68: 1 | N68: 625 | O68: 499 | P68: =O68/N68 -> 0.7984 | Q68: 499
C69: 5535 West McDowell Road | H69: =SUMPRODUCT(K68:K71,P68:P71)/H68 -> 0.7773833549 | K69: 108 | L69: 2 | M69: 1 | N69: 670 | O69: 535 | P69: 0.7985074627 | Q69: 535
C70: Phoenix, AZ 85035 | H70: =SUMPRODUCT(K68:K71,N68:N71)/H68 -> 709.6 | K70: 72 | L70: 2 | M70: 1 | N70: 740 | O70: 575 | P70: 0.777027027 | Q70: 575
C71: 1.7 W | H71: =SUMPRODUCT(K68:K71,O68:O71)/H68 -> 548.76 | K71: 48 | L71: 2 | M71: 2 | N71: 880 | O71: 615 | P71: 0.6988636364 | Q71: 615
B72: 5 | C72: CASA SOL | F72: 1985 | G72: 0.9 | H72: =SUM(K72:K81) -> 247 | I72: =SUMPRODUCT(K72:K81,N72:N81) -> 180180 | K72: 1 | L72: 0 | M72: 1 | N72: 473 | O72: 399 | P72: 0.843551797 | Q72: 399 | R72: None
C73: 4102 West Osborn Road | H73: =SUMPRODUCT(K72:K81,P72:P81)/H72 -> 0.7684713888 | K73: 23 | L73: 1 | M73: 1 | N73: 576 | O73: 499 | P73: 0.8663194444 | Q73: 499 | R73: None
C74: Phoenix, AZ 85019 | H74: =SUMPRODUCT(K72:K81,N72:N81)/H72 -> 729.4736842 | K74: 15 | L74: 1 | M74: 1 | N74: 607 | O74: 499 | P74: 0.8220757825 | Q74: 499 | R74: None
K75: 12 | L75: 1 | M75: 1 | N75: 615 | O75: 499 | P75: 0.8113821138 | Q75: 499 | R75: None
K76: 12 | L76: 1 | M76: 1 | N76: 645 | O76: 499 | P76: 0.7736434109 | Q76: 499 | R76: None
K77: 61 | L77: 1 | M77: 1 | N77: 645 | O77: 499 | P77: 0.7736434109 | Q77: 499 | R77: None
K78: 33 | L78: 2 | M78: 1 | N78: 763 | O78: 599 | P78: 0.7850589777 | Q78: 599 | R78: None
K79: 30 | L79: 2 | M79: 1 | N79: 857 | O79: 599 | P79: 0.698949825 | Q79: 599 | R79: None
K80: 32 | L80: 2 | M80: 2 | N80: 855 | O80: 630 | P80: 0.7368421053 | Q80: 630 | R80: None
C81: 1.6 N | H81: =SUMPRODUCT(K72:K81,O72:O81)/H72 -> 555.9230769 | K81: 28 | L81: 2 | M81: 2 | N81: 880 | O81: 630 | P81: 0.7159090909 | Q81: 630 | R81: None
B82: 6 | C82: MARBLE CREEK | F82: 1985 | G82: 0.95 | H82: =SUM(K82:K85) -> 244 | I82: =SUMPRODUCT(K82:K85,N82:N85) -> 206080 | K82: 108 | L82: 1 | M82: 1 | N82: 720 | O82: 510 | P82: 0.7083333333 | Q82: 510 | R82: None
C83: 5601 West McDowell Road | H83: =SUMPRODUCT(K82:K85,P82:P85)/H82 -> 0.7183957845 | K83: 48 | L83: 2 | M83: 1 | N83: 840 | O83: 620 | P83: 0.7380952381 | Q83: 620 | R83: None
C84: Phoenix, AZ 85035 | H84: =SUMPRODUCT(K82:K85,N82:N85)/H82 -> 844.5901639 | K84: 88 | L84: 2 | M84: 2 | N84: 1000 | O84: 720 | P84: 0.72 | Q84: 720 | R84: None
C85: 1.9 W | H85: =SUMPRODUCT(K82:K85,O82:O85)/H82 -> 607.3770492
B86: 7 | C86: DESERT SKY ESTATES | F86: 1985 | G86: 0.95 | H86: =SUM(K86:K90) -> 300 | I86: =SUMPRODUCT(K86:K90,N86:N90) -> 216140 | K86: 68 | L86: 1 | M86: 1 | N86: 525 | O86: 510 | P86: 0.9714285714 | Q86: 510 | R86: None
C87: 6233 West Thomas Road | H87: =SUMPRODUCT(K86:K90,P86:P90)/H86 -> 0.8482524942 | K87: 124 | L87: 1 | M87: 1 | N87: 690 | O87: 587 | P87: 0.8507246377 | Q87: 587 | R87: None
C88: Phoenix, AZ 85033 | H88: =SUMPRODUCT(K86:K90,N86:N90)/H86 -> 720.4666667 | K88: 68 | L88: 2 | M88: 1 | N88: 860 | O88: 663 | P88: 0.7709302326 | Q88: 663 | R88: None
C89: 2.7 NW | H89: =SUMPRODUCT(K86:K90,O86:O90)/H86 -> 601.04 | K89: 40 | L89: 2 | M89: 2 | N89: 910 | O89: 694 | P89: 0.7626373626 | Q89: 694 | R89: None
B91: 8 | H91: =SUM(K91:K95) -> 0 | I91: =SUMPRODUCT(K91:K95,N91:N95) -> 0 | Q91: 0
H92: =SUMPRODUCT(K91:K95,P91:P95)/H91 ->  | Q92: 0
H93: =SUMPRODUCT(K91:K95,N91:N95)/H91 ->  | Q93: 0
H94: =SUMPRODUCT(K91:K95,O91:O95)/H91 ->  | Q94: 0
Q95: 0
B96: 9 | H96: =SUM(K96:K99) -> 0 | I96: =SUMPRODUCT(K96:K99,N96:N99) -> 0 | Q96: 0
H97: =SUMPRODUCT(K96:K99,P96:P99)/H96 ->  | Q97: 0
H98: =SUMPRODUCT(K96:K99,N96:N99)/H96 ->  | Q98: 0
H99: =SUMPRODUCT(K96:K99,O96:O99)/H96 ->  | Q99: 0
B100: 10 | H100: =SUM(K100:K103) -> 0 | I100: =SUMPRODUCT(K100:K103,N100:N103) -> 0 | Q100: 0
H101: =SUMPRODUCT(K100:K103,P100:P103)/H100 ->  | Q101: 0
H102: =SUMPRODUCT(K100:K103,N100:N103)/H100 ->  | Q102: 0
H103: =SUMPRODUCT(K100:K103,O100:O103)/H100 ->  | Q103: 0
B104: 11 | H104: =SUM(K104:K108) -> 0 | I104: =SUMPRODUCT(K104:K108,N104:N108) -> 0 | Q104: 0
H105: =SUMPRODUCT(K104:K108,P104:P108)/H104 ->  | Q105: 0
H106: =SUMPRODUCT(K104:K108,N104:N108)/H104 ->  | Q106: 0
H107: =SUMPRODUCT(K104:K108,O104:O108)/H104 ->  | Q107: 0
Q108: 0
B109: 12 | H109: =SUM(K109:K112) -> 0 | I109: =SUMPRODUCT(K109:K112,N109:N112) -> 0 | Q109: 0
H110: =SUMPRODUCT(K109:K112,P109:P112)/H109 ->  | Q110: 0
H111: =SUMPRODUCT(K109:K112,N109:N112)/H109 ->  | Q111: 0
H112: =SUMPRODUCT(K109:K112,O109:O112)/H109 ->  | Q112: 0

Sheet Photo
A2: Comparable Apartment Complexes
A9: =Comps!D4 -> Subject Property
A29: =Comps!D5 -> TIERRA SANTA
A49: =Comps!D6 -> WHISPERING PALMS
A69: =Comps!D7 -> LOS VECINOS
A89: =Comps!D8 -> LYNNWOOD
A109: =Comps!D9 -> CASA SOL
A129: =Comps!D10 -> MARBLE CREEK
A149: =Comps!D11 -> DESERT SKY ESTATES

Sheet Rent Roll
A1: Unit | B1: Unit Type | C1: Sqft | D1: Resident | E1: Name | F1: Rent | G1: Charge | H1: Amount | I1: Resident | J1: Other | K1: Move In | L1: Lease | M1: Move Out | N1: Balance
A2: 1 | B2: 145th | C2: 1444 | D2: t1774949 | E2: Margarita Diamond | F2: 1050 | G2: watr | H2: 44 | I2: 0 | J2: 0 | K2: 2012-05-30 | L2: 2016-04-17 | N2: 1043
A3: 2 | B3: 145th | C3: 1444 | D3: t1774950 | E3: Ralph Albanese | F3: 1050 | G3: watr | H3: 44 | I3: 125 | J3: 0 | K3: 1980-08-01 | L3: 2016-04-17 | N3: 1094
A4: 5 | B4: 145th | C4: 1444 | D4: t1790457 | E4: Jose Figuroa | F4: 1050 | G4: rnta | H4: 1100 | I4: 0 | J4: 0 | K4: 2015-05-01 | L4: 2016-04-30 | N4: 1144
A5: 6 | B5: 145th | C5: 1444 | D5: t1774953 | E5: Susan Hoerner | F5: 1050 | G5: petf | H5: 30 | I5: 250 | J5: 0 | K5: 2011-01-20 | L5: 2016-01-25 | N5: 1025.9
A6: 8 | B6: 145th | C6: 1444 | D6: t1791257 | E6: Kenyatta Wiggins | F6: 1050 | G6: rnta | H6: 1050 | I6: 0 | J6: 0 | K6: 2015-06-26 | L6: 2016-06-25 | N6: 2765.5
A7: 9 | B7: 14522d | C7: 910 | D7: t1790720 | E7: Elizabeth Kennedy | F7: 641 | G7: rnta | H7: 681 | I7: 0 | J7: 0 | K7: 2015-05-29 | L7: 2016-05-28 | N7: 715
A8: 10 | B8: 14522u | C8: 910 | D8: t1774956 | E8: Cary Tash | F8: 641 | G8: petf | H8: 30 | I8: 0 | J8: 0 | K8: 2012-04-25 | L8: 2016-06-30 | N8: 0
A9: 11 | B9: 14522d | C9: 910 | D9: t1788851 | E9: Arryonne Baldus | F9: 641 | G9: rnta | H9: 641 | I9: 0 | J9: 0 | K9: 2014-12-07 | L9: 2015-12-06 | N9: 0
A10: 12 | B10: 14522u | C10: 910 | D10: t1787028 | E10: Pedro Torres De-Jesus | F10: 641 | G10: rnta | H10: 621 | I10: 0 | J10: 0 | K10: 2014-09-29 | L10: 2015-09-28 | N10: 655
A11: 13 | B11: 14522d | C11: 910 | D11: t1783679 | E11: Mike Francis | F11: 641 | G11: watr | H11: 34 | I11: 0 | J11: 0 | K11: 2014-03-08 | L11: 2016-05-17 | N11: 675
A12: 14 | B12: 14522u | C12: 910 | D12: t1787792 | E12: Tamara Calana | F12: 641 | G12: watr | H12: 34 | I12: 0 | J12: 0 | K12: 2014-10-10 | L12: 2015-11-09 | N12: 665
A13: 15 | B13: 14522d | C13: 910 | D13: t1791476 | E13: Ema Urias | F13: 641 | G13: rnta | H13: 716 | I13: 0 | J13: 0 | K13: 2015-08-01 | L13: 2016-07-31 | N13: 750
A14: 16 | B14: 14522u | C14: 910 | D14: t1786929 | E14: AnnMarie Smith | F14: 631 | G14: watr | H14: 34 | I14: 0 | J14: 0 | K14: 2014-08-26 | L14: 2015-11-25 | N14: 0
A15: 18 | B15: 14532u | C15: 1153 | D15: t1791314 | E15: Lucia Solis | F15: 826 | G15: rnta | H15: 816 | I15: 0 | J15: 0 | K15: 2015-07-30 | L15: 2016-07-29 | N15: 0
A16: 21 | B16: 14532d | C16: 1153 | D16: t1775992 | E16: Hugo Perez | F16: 816 | G16: watr | H16: 42 | I16: 0 | J16: 0 | K16: 2013-06-05 | L16: 2015-06-04 | N16: 1418
A17: 22 | B17: 14532u | C17: 1153 | D17: t1787874 | E17: Omar Grande-Quintana | F17: 826 | G17: rnta | H17: 816 | I17: 0 | J17: 0 | K17: 2014-11-01 | L17: 2015-10-31 | N17: 0
A18: 23 | B18: 14532d | C18: 1153 | D18: t1785998 | E18: Mark Roberts | F18: 816 | G18: watr | H18: 44 | I18: 0 | J18: 0 | K18: 2014-07-30 | L18: 2016-03-01 | N18: 776
A19: 24 | B19: 14532u | C19: 1153 | D19: t1776191 | E19: Hollanda Asansa | F19: 816 | G19: watr | H19: 44 | I19: 0 | J19: 0 | K19: 2013-07-11 | L19: 2016-01-27 | N19: 950
A20: 25 | B20: 145th | C20: 1444 | D20: t1789239 | E20: Joseph Rahn | F20: 1050 | G20: rnta | H20: 1050 | I20: 0 | J20: 0 | K20: 2015-01-21 | L20: 2016-01-20 | N20: 1184
A21: 26 | B21: 145th | C21: 1444 | D21: t1776189 | E21: Lilia Lopez | F21: 1050 | G21: watr | H21: 32 | I21: 0 | J21: 0 | K21: 2013-07-01 | L21: 2015-06-30 | N21: 1331.5
A22: 27 | B22: 14532d | C22: 1153 | D22: t1774969 | E22: Raphael Andrada | F22: 816 | G22: watr | H22: 44 | I22: 75 | J22: 0 | K22: 2002-10-21 | L22: 2016-07-20 | N22: -40
A23: 28 | B23: 14532u | C23: 1153 | D23: t1791464 | E23: Kevin May | F23: 816 | G23: rnta | H23: 816 | I23: 0 | J23: 0 | K23: 2015-07-17 | L23: 2016-07-16 | N23: 860.5
A24: 29 | B24: 14532d | C24: 1153 | D24: t1791309 | E24: John Baloyot | F24: 816 | G24: rnta | H24: 826 | I24: 0 | J24: 0 | K24: 2015-07-01 | L24: 2016-06-30 | N24: 0
A25: 30 | B25: 14532u | C25: 1153 | D25: t1789157 | E25: Ontoniel Berrera | F25: 816 | G25: rnta | H25: 816 | I25: 0 | J25: 0 | K25: 2015-01-10 | L25: 2016-01-09 | N25: 860
A26: 31 | B26: 14532d | C26: 1153 | D26: t1785008 | E26: Edlyn Salvador | F26: 816 | G26: watr | H26: 44 | I26: 0 | J26: 0 | K26: 2014-05-30 | L26: 2016-05-29 | N26: 880
A27: 32 | B27: 14532u | C27: 1153 | D27: t1779908 | E27: Kylie Dougman | F27: 826 | G27: watr | H27: 44 | I27: 0 | J27: 0 | K27: 2013-11-02 | L27: 2014-11-01 | M27: 2015-09-30 | N27: 1
A28: 35 | B28: 145th | C28: 1444 | D28: t1790662 | E28: Kristopher Youts | F28: 1050 | G28: rnta | H28: 1050 | I28: 150 | J28: 0 | K28: 2015-06-01 | L28: 2016-05-31 | N28: 1094
A29: 37 | B29: 14522d | C29: 910 | D29: t1774976 | E29: Antonio Martinez-Garcia | F29: 641 | G29: rnta | H29: 631 | I29: 0 | J29: 0 | K29: 2009-09-09 | L29: 2016-01-04 | N29: 0
A30: 38 | B30: 14522u | C30: 910 | D30: t1780898 | E30: Nenita Denao | F30: 641 | G30: watr | H30: 34 | I30: 0 | J30: 0 | K30: 2013-11-01 | L30: 2015-10-31 | N30: 640
A31: 39 | B31: 14522d | C31: 910 | D31: t1789810 | E31: Siohquei Donald | F31: 641 | G31: watr | H31: 34 | I31: 0 | J31: 0 | K31: 2015-03-10 | L31: 2016-03-09 | N31: 675
A32: 40 | B32: 14522u | C32: 910 | D32: t1790581 | E32: Keekee Phillips | F32: 631 | G32: rnta | H32: 641 | I32: 0 | J32: 0 | K32: 2015-04-30 | L32: 2016-04-29 | N32: 739.03
A33: 41 | B33: 14522d | C33: 910 | D33: t1776183 | E33: Alexander Santiago | F33: 641 | G33: rnta | H33: 641 | I33: 0 | J33: 0 | K33: 2013-06-26 | L33: 2016-06-25 | N33: 0
A34: 44 | B34: 14522u | C34: 910 | D34: t1789649 | E34: Rhonda Smith | F34: 641 | G34: rnta | H34: 631 | I34: 0 | J34: 0 | K34: 2015-03-06 | L34: 2016-03-05 | N34: 0
A35: 45 | B35: 14532d | C35: 1153 | D35: t1783010 | E35: Agner Penuliar | F35: 816 | G35: watr | H35: 44 | I35: 0 | J35: 0 | K35: 2014-01-26 | L35: 2016-01-25 | N35: 0
A36: 46 | B36: 14532u | C36: 1153 | D36: t1774981 | E36: Feza Minani | F36: 826 | G36: watr | H36: 44 | I36: 250 | J36: 0 | K36: 2012-01-31 | L36: 2014-12-31 | N36: 1062
A37: 47 | B37: 14532d | C37: 1153 | D37: t1789177 | E37: Luis DeLaCruz | F37: 816 | G37: rnta | H37: 826 | I37: 0 | J37: 0 | K37: 2015-01-10 | L37: 2016-01-09 | N37: -50
A38: 48 | B38: 14532u | C38: 1153 | D38: t1791806 | E38: Martha Gomez | F38: 826 | G38: rnta | H38: 876 | I38: 0 | J38: 0 | K38: 2015-09-01 | L38: 2016-08-31 | N38: 0
A39: 49 | B39: 14511d | C39: 680 | D39: t1791069 | E39: Jose Garcia | F39: 541 | G39: rnta | H39: 541 | I39: 0 | J39: 0 | K39: 2015-06-12 | L39: 2016-03-11 | N39: 0
A40: 50 | B40: 14511u | C40: 680 | D40: t1791495 | E40: Micheal Nevirs | F40: 531 | G40: rnta | H40: 531 | I40: 0 | J40: 0 | K40: 2015-08-03 | L40: 2016-08-02 | N40: 0
A41: 51 | B41: 14511d | C41: 680 | D41: t1786553 | E41: Eric Taylor | F41: 541 | G41: watr | H41: 24 | I41: 0 | J41: 0 | K41: 2014-08-16 | L41: 2016-08-15 | N41: 848
A42: 52 | B42: 14511u | C42: 680 | D42: t1791177 | E42: Sandro Hernandez | F42: 531 | G42: rnta | H42: 581 | I42: 0 | J42: 0 | K42: 2015-06-30 | L42: 2016-03-29 | N42: 0
A43: 53 | B43: 14511d | C43: 680 | D43: t1791416 | E43: Elysa Jackson | F43: 541 | G43: rnta | H43: 571 | I43: 0 | J43: 0 | K43: 2015-07-17 | L43: 2016-07-16 | N43: -43.66
A44: 54 | B44: 14511u | C44: 680 | D44: t1790013 | E44: Saul Aguilar | F44: 531 | G44: rnta | H44: 561 | I44: 0 | J44: 0 | K44: 2015-03-12 | L44: 2016-03-11 | N44: 0
A45: 55 | B45: 14511d | C45: 680 | D45: t1790716 | E45: Maria Dalmacio | F45: 541 | G45: rnta | H45: 571 | I45: 0 | J45: 0 | K45: 2015-05-29 | L45: 2016-05-28 | N45: 0
A46: 56 | B46: 14511u | C46: 680 | D46: t1790500 | E46: Steven Hampel | F46: 531 | G46: rnta | H46: 561 | I46: 0 | J46: 0 | K46: 2015-04-22 | L46: 2016-04-21 | N46: 578
A47: 57 | B47: 14511d | C47: 680 | D47: t1774991 | E47: Ricky Marczak | F47: 541 | G47: rnta | H47: 549 | I47: 0 | J47: 0 | K47: 2012-08-23 | L47: 2016-08-22 | N47: 0
A48: 58 | B48: 14511u | C48: 680 | D48: t1789933 | E48: Rodnys Gonzalez-Garces | F48: 531 | G48: rnta | H48: 531 | I48: 0 | J48: 0 | K48: 2015-03-04 | L48: 2016-03-03 | N48: 630
A49: 59 | B49: 14511d | C49: 680 | D49: t1784389 | E49: Daryl Franklin | F49: 541 | G49: watr | H49: 24 | I49: 0 | J49: 0 | K49: 2014-04-27 | L49: 2016-04-26 | N49: 0
A50: 60 | B50: 14511u | C50: 680 | D50: t1791628 | E50: Joseph Del Rio | F50: 531 | G50: rnta | H50: 531 | I50: 0 | J50: 0 | K50: 2015-08-04 | L50: 2016-08-03 | N50: 0
A51: 61 | B51: 14511d | C51: 680 | D51: t1791078 | E51: Jeanne Zobel | F51: 541 | G51: rnta | H51: 556 | I51: 0 | J51: 0 | K51: 2015-06-05 | L51: 2016-06-04 | N51: 580
A52: 62 | B52: 14511u | C52: 680 | D52: t1786207 | E52: By-She Servance | F52: 531 | G52: watr | H52: 24 | I52: 0 | J52: 0 | K52: 2014-09-05 | L52: 2016-06-04 | N52: 0
A53: 63 | B53: 14511d | C53: 680 | D53: t1774996 | E53: Yolanda Ibarra | F53: 541 | G53: watr | H53: 24 | I53: 0 | J53: 0 | K53: 2011-08-30 | L53: 2015-12-31 | N53: 645
A54: 64 | B54: 14511u | C54: 680 | D54: t1789173 | E54: Joseph Davis | F54: 531 | G54: rnta | H54: 531 | I54: 0 | J54: 0 | K54: 2015-01-13 | L54: 2016-01-12 | N54: 566.9
A55: 65 | B55: 14522d | C55: 910 | D55: t1787881 | E55: Jose Amaya | F55: 641 | G55: watr | H55: 34 | I55: 0 | J55: 0 | K55: 2014-11-29 | L55: 2016-02-22 | N55: 100
A56: 66 | B56: 14522u | C56: 910 | D56: t1784106 | E56: Susana Lopez | F56: 631 | G56: watr | H56: 34 | I56: 0 | J56: 0 | K56: 2014-04-01 | L56: 2016-03-31 | N56: 0
A57: 67 | B57: 14522d | C57: 910 | D57: t1785816 | E57: Jocelyn Jimenez | F57: 641 | G57: watr | H57: 34 | I57: 0 | J57: 0 | K57: 2014-07-01 | L57: 2016-06-30 | N57: 0
A58: 68 | B58: 14522u | C58: 910 | D58: t1775000 | E58: Jose Hernandez-Marin | F58: 641 | G58: watr | H58: 34 | I58: 0 | J58: 0 | K58: 2012-10-20 | L58: 2015-10-31 | N58: 0
A59: 69 | B59: 14522d | C59: 910 | D59: t1787873 | E59: Mario Thomas | F59: 641 | G59: rnta | H59: 631 | I59: 0 | J59: 0 | K59: 2014-10-29 | L59: 2015-10-28 | N59: 683.27
A60: 70 | B60: 14522u | C60: 910 | D60: t1787295 | E60: Tania Rodriguez | F60: 631 | G60: rnta | H60: 631 | I60: 0 | J60: 0 | K60: 2014-09-30 | L60: 2016-09-29 | N60: 665
A61: 71 | B61: 14522d | C61: 910 | D61: t1775003 | E61: Keith McKeever | F61: 641 | G61: rnta | H61: 641 | I61: 0 | J61: 0 | K61: 2011-05-31 | L61: 2016-02-02 | N61: 11.5
A62: 72 | B62: 14522u | C62: 910 | D62: t1783816 | E62: Arcenio Lagas | F62: 641 | G62: watr | H62: 34 | I62: 0 | J62: 0 | K62: 2014-04-01 | L62: 2016-02-18 | N62: 0
A63: 73 | B63: 14522d | C63: 910 | D63: t1787698 | E63: Loxie Bradley | F63: 641 | G63: rnta | H63: 631 | I63: 0 | J63: 0 | K63: 2014-11-07 | L63: 2015-11-06 | N63: 0
A64: 74 | B64: 14522u | C64: 910 | D64: t1787951 | E64: Rosalyn Co | F64: 641 | G64: rnta | H64: 631 | I64: 0 | J64: 0 | K64: 2014-11-03 | L64: 2015-11-02 | N64: 75
A65: 75 | B65: 14522d | C65: 910 | D65: t1789082 | E65: Susie Odusanya | F65: 641 | G65: rnta | H65: 641 | I65: 0 | J65: 0 | K65: 2015-01-02 | L65: 2015-10-01 | N65: 675
A66: 76 | B66: 14522u | C66: 910 | D66: t1784115 | E66: Isaias Posada | F66: 641 | G66: watr | H66: 34 | I66: 0 | J66: 0 | K66: 2014-04-01 | L66: 2016-04-30 | N66: 0
A67: 78 | B67: 14522u | C67: 910 | D67: t1786082 | E67: Darwin Bello | F67: 631 | G67: watr | H67: 34 | I67: 0 | J67: 0 | K67: 2014-07-08 | L67: 2016-01-07 | N67: 675
A68: 79 | B68: 14522d | C68: 910 | D68: t1775009 | E68: Kathleen Dunfee | F68: 641 | G68: preemp | H68: -32.05 | I68: 0 | J68: 0 | K68: 2011-12-06 | L68: 2015-12-16 | N68: 0
A69: 80 | B69: 14522u | C69: 910 | D69: t1787971 | E69: Carlos Chan-May | F69: 641 | G69: rnta | H69: 631 | I69: 0 | J69: 0 | K69: 2014-11-07 | L69: 2015-11-06 | N69: 0
A70: 81 | B70: 14521d | C70: 816 | D70: t1775011 | E70: Mary Hoppler | F70: 616 | G70: watr | H70: 34 | I70: 225 | J70: 0 | K70: 1985-08-01 | L70: 2016-08-21 | N70: -7
A71: 82 | B71: 14521u | C71: 816 | D71: t1790328 | E71: Jasmin Grill | F71: 626 | G71: rnta | H71: 656 | I71: 0 | J71: 0 | K71: 2015-04-03 | L71: 2016-04-02 | N71: 0
A72: 85 | B72: 14521d | C72: 816 | D72: t1775015 | E72: Ben Mitani | F72: 616 | G72: watr | H72: 34 | I72: 150 | J72: 0 | K72: 2002-08-21 | L72: 2016-07-03 | N72: 0
A73: 86 | B73: 14521u | C73: 816 | D73: t1787866 | E73: Sharmaine Domingo | F73: 626 | G73: rnta | H73: 616 | I73: 0 | J73: 0 | K73: 2014-10-22 | L73: 2015-10-21 | M73: 2015-09-09 | N73: 195
A74: 87 | B74: 14521d | C74: 816 | D74: t1791557 | E74: Brandon Scotto | F74: 616 | G74: rnta | H74: 626 | I74: 0 | J74: 0 | K74: 2015-07-20 | L74: 2016-07-19 | N74: 0
A75: 88 | B75: 14521u | C75: 816 | D75: t1790474 | E75: Tavette Franklin | F75: 626 | G75: rnta | H75: 706 | I75: 0 | J75: 0 | K75: 2015-04-25 | L75: 2016-04-24 | N75: 1816
A76: 89 | B76: 14521d | C76: 816 | D76: t1775018 | E76: Jaime Parlero | F76: 616 | G76: rnta | H76: 600 | I76: 250 | J76: 0 | K76: 2011-11-04 | L76: 2015-10-15 | N76: 0
A77: 90 | B77: 14521u | C77: 816 | D77: t1786916 | E77: Luis DeLaCruz-Salgado | F77: 626 | G77: watr | H77: 34 | I77: 0 | J77: 0 | K77: 2014-09-02 | L77: 2016-06-01 | N77: 53
A78: 91 | B78: 14521d | C78: 816 | D78: t1775020 | E78: Sallyann Verdi | F78: 616 | G78: watr | H78: 34 | I78: 0 | J78: 0 | K78: 2012-12-19 | L78: 2016-06-28 | N78: -0.1
A79: 92 | B79: 14521u | C79: 816 | D79: t1775021 | E79: Julie Hickman | F79: 626 | G79: watr | H79: 34 | I79: 125 | J79: 0 | K79: 2011-12-20 | L79: 2016-05-23 | N79: 650
A80: 93 | B80: 14521d | C80: 816 | D80: t1791555 | E80: Monica Medlock | F80: 616 | G80: rnta | H80: 626 | I80: 0 | J80: 0 | K80: 2015-08-01 | L80: 2016-07-31 | N80: 749.5
A81: 94 | B81: 14521u | C81: 816 | D81: t1783002 | E81: Victoria Harbison | F81: 616 | G81: watr | H81: 34 | I81: 0 | J81: 0 | K81: 2014-02-12 | L81: 2016-02-11 | N81: 0
A82: 95 | B82: 14521d | C82: 816 | D82: t1775024 | E82: Roberta Gehl | F82: 616 | G82: watr | H82: 34 | I82: 200 | J82: 0 | K82: 2010-05-18 | L82: 2016-03-31 | N82: 0
A83: 96 | B83: 14521u | C83: 816 | D83: t1786081 | E83: Shirley Fernando | F83: 616 | G83: watr | H83: 34 | I83: 0 | J83: 0 | K83: 2014-07-08 | L83: 2016-01-14 | N83: 650
A84: 97 | B84: 14521d | C84: 816 | D84: t1785636 | E84: Elina Leyva | F84: 616 | G84: watr | H84: 34 | I84: 0 | J84: 0 | K84: 2014-06-27 | L84: 2016-06-25 | N84: 0
A85: 98 | B85: 14521u | C85: 816 | D85: t1791614 | E85: Tyrone Taylor | F85: 626 | G85: rnta | H85: 616 | I85: 0 | J85: 0 | K85: 2015-07-31 | L85: 2016-07-30 | N85: 0
A86: 99 | B86: 14521d | C86: 816 | D86: t1784835 | E86: Charles Koukoulis | F86: 616 | G86: watr | H86: 34 | I86: 0 | J86: 0 | K86: 2014-05-24 | L86: 2016-08-11 | N86: 650
A87: 100 | B87: 14521u | C87: 816 | D87: t1791259 | E87: Roberto Hidalgo Frenandez | F87: 626 | G87: rnta | H87: 616 | I87: 0 | J87: 0 | K87: 2015-07-01 | L87: 2016-03-31 | N87: 0.2
A88: 101 | B88: 14521d | C88: 816 | D88: t1791989 | E88: Iris Alavrez- Gonzales | F88: 616 | G88: rnta | H88: 626 | I88: 0 | J88: 0 | K88: 2015-09-01 | L88: 2016-08-31 | N88: -99
A89: 102 | B89: 14521u | C89: 816 | D89: t1791783 | E89: Virgina Cuevas | F89: 616 | G89: rnta | H89: 616 | I89: 0 | J89: 0 | K89: 2015-09-01 | L89: 2016-05-31 | N89: -59
A90: 103 | B90: 14521d | C90: 816 | D90: t1775030 | E90: Raymond Washington | F90: 616 | G90: rnta | H90: 641 | I90: 0 | J90: 0 | K90: 2010-04-29 | L90: 2016-06-12 | N90: 0
A91: 104 | B91: 14521u | C91: 816 | D91: t1791363 | E91: Doreal Van Buren | F91: 626 | G91: rnta | H91: 616 | I91: 0 | J91: 0 | K91: 2015-06-30 | L91: 2016-06-29 | N91: 0
A92: 105 | B92: 14522d | C92: 910 | D92: t1778322 | E92: Mark Bautista | F92: 641 | G92: watr | H92: 34 | I92: 0 | J92: 0 | K92: 2013-09-05 | L92: 2016-03-04 | N92: 663.67
A93: 107 | B93: 14522d | C93: 910 | D93: t1776810 | E93: Aurelio Solano | F93: 641 | G93: watr | H93: 34 | I93: 0 | J93: 0 | K93: 2013-08-15 | L93: 2016-03-26 | N93: 0
A94: 109 | B94: 14522d | C94: 910 | D94: t1789140 | E94: Arianna Chicatto | F94: 641 | G94: rnta | H94: 641 | I94: 0 | J94: 0 | K94: 2015-01-13 | L94: 2016-01-12 | N94: 887
A95: 110 | B95: 14522u | C95: 910 | D95: t1787294 | E95: Bimala Gurung | F95: 631 | G95: rnta | H95: 631 | I95: 0 | J95: 0 | K95: 2014-09-09 | L95: 2016-03-08 | N95: -2.66
A96: 111 | B96: 14522d | C96: 910 | D96: t1791623 | E96: Placido Corpuz | F96: 641 | G96: rnta | H96: 641 | I96: 0 | J96: 0 | K96: 2015-08-10 | L96: 2016-08-09 | N96: 600
A97: 112 | B97: 14522u | C97: 910 | D97: t1775035 | E97: Carl Dillard | F97: 641 | G97: watr | H97: 34 | I97: 250 | J97: 0 | K97: 2011-11-08 | L97: 2016-05-25 | N97: 0
A98: 113 | B98: 14521d | C98: 816 | D98: t1789734 | E98: Alma Martinez | F98: 616 | G98: rnta | H98: 626 | I98: 0 | J98: 0 | K98: 2015-02-25 | L98: 2016-02-24 | N98: 0
A99: 114 | B99: 14521u | C99: 816 | D99: t1785575 | E99: Kerry Bray | F99: 626 | G99: watr | H99: 34 | I99: 0 | J99: 0 | K99: 2014-06-02 | L99: 2016-03-31 | N99: 50
A100: 115 | B100: 14521d | C100: 816 | D100: t1787942 | E100: Damon Lopez | F100: 616 | G100: rnta | H100: 616 | I100: 0 | J100: 0 | K100: 2014-11-01 | L100: 2015-10-31 | N100: 649
A101: 117 | B101: 14521d | C101: 816 | D101: t1786420 | E101: Jorge Gonzalez | F101: 616 | G101: watr | H101: 34 | I101: 0 | J101: 0 | K101: 2014-08-05 | L101: 2016-08-04 | N101: 838
A102: 118 | B102: 14521u | C102: 816 | D102: t1789217 | E102: Linda Stanton | F102: 626 | G102: rnta | H102: 616 | I102: 0 | J102: 0 | K102: 2015-01-15 | L102: 2016-01-14 | N102: 50
A103: 119 | B103: 14521d | C103: 816 | D103: t1782983 | E103: Manuel Martinez | F103: 626 | G103: watr | H103: 34 | I103: 0 | J103: 0 | K103: 2014-01-23 | L103: 2016-07-31 | N103: 660
A104: 120 | B104: 14521u | C104: 816 | D104: t1791680 | E104: Humberto Royal | F104: 616 | G104: rnta | H104: 616 | I104: 0 | J104: 0 | K104: 2015-08-07 | L104: 2016-08-06 | N104: 650
A105: 121 | B105: 14521d | C105: 816 | D105: t1789168 | E105: Qiana Grier | F105: 616 | G105: watr | H105: 34 | I105: 0 | J105: 0 | K105: 2015-01-15 | L105: 2016-01-14 | N105: 0
A106: 122 | B106: 14521u | C106: 816 | D106: t1786841 | E106: Keith Meredith | F106: 616 | G106: watr | H106: 34 | I106: 0 | J106: 0 | K106: 2014-08-22 | L106: 2016-08-21 | N106: 0
A107: 123 | B107: 14521d | C107: 816 | D107: t1779580 | E107: Perla Lopez | F107: 616 | G107: watr | H107: 34 | I107: 0 | J107: 0 | K107: 2013-11-26 | L107: 2015-11-25 | N107: 620
A108: 124 | B108: 14521u | C108: 816 | D108: t1790501 | E108: Wendy Acosta | F108: 626 | G108: rnta | H108: 656 | I108: 0 | J108: 0 | K108: 2015-04-17 | L108: 2016-04-16 | N108: 779.16
A109: 125 | B109: 14521d | C109: 816 | D109: t1790684 | E109: Rachel Kelly | F109: 616 | G109: rnta | H109: 626 | I109: 0 | J109: 0 | K109: 2015-06-01 | L109: 2016-05-31 | N109: 90
A110: 126 | B110: 14521u | C110: 816 | D110: t1775047 | E110: Teshanna Jones | F110: 626 | G110: watr | H110: 34 | I110: 0 | J110: 0 | K110: 2012-10-04 | L110: 2016-04-03 | N110: 750
A111: 127 | B111: 14521d | C111: 816 | D111: t1791925 | E111: Felicia Waits | F111: 616 | G111: rnta | H111: 641 | I111: 0 | J111: 0 | K111: 2015-09-03 | L111: 2016-09-02 | N111: 0
A112: 128 | B112: 14521u | C112: 816 | D112: t1789057 | E112: Tonya Hrenko | F112: 616 | G112: watr | H112: 34 | I112: 0 | J112: 0 | K112: 2014-12-17 | L112: 2015-07-16 | N112: 0
A113: 129 | B113: 14522d | C113: 910 | D113: t1788711 | E113: Jose Bastido | F113: 641 | G113: rnta | H113: 641 | I113: 0 | J113: 0 | K113: 2014-11-01 | L113: 2015-10-31 | N113: 675
A114: 130 | B114: 14522u | C114: 910 | D114: t1786963 | E114: Wesley West | F114: 631 | G114: watr | H114: 34 | I114: 0 | J114: 0 | K114: 2014-08-31 | L114: 2016-03-01 | N114: 803
A115: 131 | B115: 14522d | C115: 910 | D115: t1785947 | E115: Michele Quion | F115: 641 | G115: watr | H115: 34 | I115: 0 | J115: 0 | K115: 2014-07-07 | L115: 2016-02-06 | N115: 765
A116: 132 | B116: 14522u | C116: 910 | D116: t1789360 | E116: Darcie Culley | F116: 641 | G116: rnta | H116: 631 | I116: 0 | J116: 0 | K116: 2015-02-01 | L116: 2016-01-31 | N116: 690
A117: 133 | B117: 14522d | C117: 910 | D117: t1791452 | E117: Jose Jarlego | F117: 641 | G117: rnta | H117: 641 | I117: 0 | J117: 0 | K117: 2015-07-17 | L117: 2016-07-16 | N117: -1
A118: 135 | B118: 14522d | C118: 910 | D118: t1775053 | E118: Roseline Prudent | F118: 641 | G118: watr | H118: 34 | I118: 250 | J118: 0 | K118: 2010-03-01 | L118: 2015-12-03 | N118: 0
A119: 136 | B119: 14522u | C119: 910 | D119: t1787557 | E119: Johnny Bartunek | F119: 641 | G119: watr | H119: 34 | I119: 0 | J119: 0 | K119: 2014-10-05 | L119: 2015-11-03 | N119: 0
A120: 137 | B120: 14521d | C120: 816 | D120: t1789777 | E120: Daphne Querol | F120: 616 | G120: rnta | H120: 626 | I120: 0 | J120: 0 | K120: 2015-03-01 | L120: 2016-02-29 | N120: -627
A121: 138 | B121: 14521u | C121: 816 | D121: t1791679 | E121: Nancy Nguyen | F121: 616 | G121: rnta | H121: 616 | I121: 0 | J121: 0 | K121: 2015-08-27 | L121: 2016-08-26 | N121: -21.67
A122: 139 | B122: 14521d | C122: 816 | D122: t1775057 | E122: Elizabeth Reynoso | F122: 616 | G122: watr | H122: 34 | I122: 150 | J122: 0 | K122: 2011-07-05 | L122: 2016-07-23 | N122: 650
A123: 140 | B123: 14521u | C123: 816 | D123: t1775058 | E123: Nicole Furlow | F123: 616 | G123: watr | H123: 34 | I123: 250 | J123: 0 | K123: 2011-07-30 | L123: 2016-03-09 | N123: 0
A124: 141 | B124: 14521d | C124: 816 | D124: t1787750 | E124: Jose Dominguez | F124: 626 | G124: rnta | H124: 626 | I124: 0 | J124: 0 | K124: 2014-10-28 | L124: 2015-10-27 | N124: 750
A125: 142 | B125: 14521u | C125: 816 | D125: t1790673 | E125: Nestor Olivares-Munoz | F125: 626 | G125: rnta | H125: 626 | I125: 0 | J125: 0 | K125: 2015-05-01 | L125: 2016-04-30 | N125: 0
A126: 143 | B126: 14521d | C126: 816 | D126: t1786446 | E126: Jose Guevara | F126: 626 | G126: watr | H126: 34 | I126: 0 | J126: 0 | K126: 2014-08-01 | L126: 2016-07-31 | N126: 629
A127: 144 | B127: 14521u | C127: 816 | D127: t1790842 | E127: Jose Perez | F127: 616 | G127: rnta | H127: 616 | I127: 0 | J127: 0 | K127: 2015-06-02 | L127: 2016-03-01 | N127: 0
A128: 146 | B128: 14522u | C128: 910 | D128: t1791171 | E128: Fabiola Chavez | F128: 641 | G128: rnta | H128: 681 | I128: 0 | J128: 0 | K128: 2015-06-18 | L128: 2016-06-17 | N128: 0
A129: 147 | B129: 14522d | C129: 910 | D129: t1776038 | E129: Vibora Gisaldo | F129: 641 | G129: watr | H129: 34 | I129: 0 | J129: 0 | K129: 2013-06-26 | L129: 2016-06-25 | N129: 0
A130: 148 | B130: 14522u | C130: 910 | D130: t1776039 | E130: Cesar Juni | F130: 641 | G130: watr | H130: 34 | I130: 0 | J130: 0 | K130: 2013-06-26 | L130: 2016-06-25 | N130: 0
A131: 149 | B131: 14522d | C131: 910 | D131: t1787720 | E131: Debra Nesbitt | F131: 641 | G131: watr | H131: 34 | I131: 0 | J131: 0 | K131: 2014-10-10 | L131: 2016-05-08 | N131: 0
A132: 151 | B132: 14522d | C132: 910 | D132: t1791461 | E132: Guillermo Duarte | F132: 641 | G132: rnta | H132: 641 | I132: 0 | J132: 0 | K132: 2015-07-02 | L132: 2016-07-01 | N132: -98
A133: 152 | B133: 14522u | C133: 910 | D133: t1777442 | E133: Furaha Muhimuzi | F133: 641 | G133: watr | H133: 34 | I133: 0 | J133: 0 | K133: 2013-08-16 | L133: 2016-02-29 | N133: 746.5
A134: 154 | B134: 14521u | C134: 816 | D134: t1789076 | E134: Theresa Green | F134: 616 | G134: watr | H134: 34 | I134: 0 | J134: 0 | K134: 2014-12-26 | L134: 2016-07-26 | N134: 637
A135: 155 | B135: 14521d | C135: 816 | D135: t1784807 | E135: Pedro Vaquez-Orta | F135: 616 | G135: watr | H135: 34 | I135: 0 | J135: 0 | K135: 2014-06-30 | L135: 2016-07-05 | N135: 607
A136: 156 | B136: 14521u | C136: 816 | D136: t1783500 | E136: Dan Christopher Argarin | F136: 626 | G136: watr | H136: 34 | I136: 0 | J136: 0 | K136: 2014-02-28 | L136: 2016-06-01 | N136: 0
A137: 158 | B137: 14521u | C137: 816 | D137: t1787751 | E137: Renard Dunbar | F137: 626 | G137: watr | H137: 34 | I137: 0 | J137: 0 | K137: 2014-10-10 | L137: 2016-01-08 | N137: 740
A138: 159 | B138: 14521d | C138: 816 | D138: t1787603 | E138: Walter Cruz Lopez | F138: 616 | G138: rnta | H138: 626 | I138: 0 | J138: 0 | K138: 2014-09-30 | L138: 2015-09-29 | M138: 2015-09-30 | N138: 0
A139: 160 | B139: 14521u | C139: 816 | D139: t1787786 | E139: Hailee Brinckerhoff | F139: 626 | G139: rnta | H139: 616 | I139: 0 | J139: 0 | K139: 2014-10-08 | L139: 2015-10-10 | N139: 755
A140: 161 | B140: 14522d | C140: 910 | D140: t1785804 | E140: Uldaris Arias-Morales | F140: 641 | G140: watr | H140: 34 | I140: 0 | J140: 0 | K140: 2014-06-26 | L140: 2016-06-24 | N140: 675
A141: 162 | B141: 14522u | C141: 910 | D141: t1791558 | E141: Zewdu Tsinu | F141: 631 | G141: rnta | H141: 631 | I141: 0 | J141: 0 | K141: 2015-08-17 | L141: 2016-08-16 | N141: 0
A142: 163 | B142: 14522d | C142: 910 | D142: t1785009 | E142: Glicerio Unas | F142: 641 | G142: watr | H142: 34 | I142: 0 | J142: 0 | K142: 2014-06-04 | L142: 2016-07-16 | N142: 60
A143: 164 | B143: 14522u | C143: 910 | D143: t1789191 | E143: Jean Pierre Vasquez | F143: 641 | G143: rnta | H143: 631 | I143: 0 | J143: 0 | K143: 2015-01-30 | L143: 2016-01-29 | N143: 0
A144: 165 | B144: 14522d | C144: 910 | D144: t1790834 | E144: Chanel Gallegos | F144: 641 | G144: rnta | H144: 661 | I144: 0 | J144: 0 | K144: 2015-05-29 | L144: 2016-05-28 | N144: 1.95
A145: 166 | B145: 14522u | C145: 910 | D145: t1791041 | E145: Krisroffer Jayona | F145: 631 | G145: rnta | H145: 631 | I145: 0 | J145: 0 | K145: 2015-05-31 | L145: 2016-05-30 | N145: 809.9
A146: 168 | B146: 14522u | C146: 910 | D146: t1789610 | E146: Luis Sandoval | F146: 641 | G146: rnta | H146: 716 | I146: 0 | J146: 0 | K146: 2015-02-28 | L146: 2016-02-27 | N146: 750
A147: 169 | B147: 14522d | C147: 910 | D147: t1791781 | E147: Jose Alaniz | F147: 641 | G147: rnta | H147: 696 | I147: 0 | J147: 0 | K147: 2015-09-01 | L147: 2016-08-31 | N147: 75
A148: 170 | B148: 14522u | C148: 910 | D148: t1785732 | E148: Vilma Rodriquez Hernandez | F148: 641 | G148: watr | H148: 34 | I148: 0 | J148: 0 | K148: 2014-06-10 | L148: 2016-06-10 | N148: 600.87
A149: 171 | B149: 14522d | C149: 910 | D149: t1789875 | E149: Jose Catanyag | F149: 641 | G149: rnta | H149: 641 | I149: 0 | J149: 0 | K149: 2015-02-21 | L149: 2015-11-20 | N149: 675
A150: 172 | B150: 14522u | C150: 910 | D150: t1775076 | E150: Rosario Mazas | F150: 641 | G150: preemp | H150: -33.7 | I150: 0 | J150: 0 | K150: 2010-04-12 | L150: 2016-05-30 | N150: 0
A151: 173 | B151: 14511d | C151: 680 | D151: t1785293 | E151: Johanna Martinez | F151: 541 | G151: watr | H151: 24 | I151: 0 | J151: 0 | K151: 2014-06-02 | L151: 2015-12-01 | N151: 565
A152: 174 | B152: 14511u | C152: 680 | D152: t1789342 | E152: Keiana Hall | F152: 531 | G152: rnta | H152: 531 | I152: 0 | J152: 0 | K152: 2015-02-28 | L152: 2016-02-27 | N152: 555
A153: 175 | B153: 14511d | C153: 680 | D153: t1788764 | E153: Crystal Pedroza | F153: 541 | G153: rnta | H153: 541 | I153: 0 | J153: 0 | K153: 2014-11-26 | L153: 2015-11-25 | N153: 655
A154: 176 | B154: 14511u | C154: 680 | D154: t1785291 | E154: Esteban Canales | F154: 531 | G154: watr | H154: 24 | I154: 0 | J154: 0 | K154: 2014-06-03 | L154: 2016-06-02 | N154: 655
A155: 178 | B155: 14511u | C155: 680 | D155: t1775080 | E155: Karl Webster | F155: 531 | G155: watr | H155: 24 | I155: 250 | J155: 0 | K155: 2012-02-11 | L155: 2016-01-05 | N155: 609
A156: 179 | B156: 14511d | C156: 680 | D156: t1788866 | E156: David Aldama Hernandez | F156: 541 | G156: rnta | H156: 531 | I156: 0 | J156: 0 | K156: 2014-12-05 | L156: 2015-12-04 | N156: 555
A157: 180 | B157: 14511u | C157: 680 | D157: t1790526 | E157: Timothy Buchanan | F157: 531 | G157: rnta | H157: 531 | I157: 0 | J157: 0 | K157: 2015-05-16 | L157: 2016-05-15 | N157: 0
A158: 181 | B158: 14511d | C158: 680 | D158: t1791170 | E158: Julia Vargas- Avila | F158: 541 | G158: rnta | H158: 551 | I158: 0 | J158: 0 | K158: 2015-06-30 | L158: 2016-06-29 | N158: 39.17
A159: 182 | B159: 14511u | C159: 680 | D159: t1791987 | E159: Niasia Leftenant | F159: 531 | G159: rnta | H159: 531 | I159: 0 | J159: 0 | K159: 2015-09-05 | L159: 2016-09-04 | N159: 112.5
A160: 184 | B160: 14511u | C160: 680 | D160: t1785880 | E160: Emmanuel Cruz | F160: 531 | G160: watr | H160: 24 | I160: 0 | J160: 0 | K160: 2014-06-27 | L160: 2016-07-26 | N160: 0
A161: 187 | B161: 14511d | C161: 680 | D161: t1791780 | E161: Roberto Jimenez | F161: 541 | G161: rnta | H161: 541 | I161: 0 | J161: 0 | K161: 2015-08-20 | L161: 2016-08-19 | N161: 655
A162: 188 | B162: 14511u | C162: 680 | D162: t1791420 | E162: Aryal Puruswottam | F162: 531 | G162: rnta | H162: 531 | I162: 0 | J162: 0 | K162: 2015-07-15 | L162: 2016-01-14 | N162: 0
A163: 191 | B163: 14511d | C163: 680 | D163: t1787741 | E163: Reynaldo Ilano | F163: 541 | G163: rnta | H163: 541 | I163: 0 | J163: 0 | K163: 2014-11-01 | L163: 2015-10-31 | N163: 0
A164: 192 | B164: 14511u | C164: 680 | D164: t1786853 | E164: Francisco Sierra | F164: 531 | G164: watr | H164: 24 | I164: 0 | J164: 0 | K164: 2014-09-02 | L164: 2015-10-01 | N164: 555
A165: 194 | B165: 14511u | C165: 680 | D165: t1789686 | E165: Jessica Sanchez | F165: 531 | G165: rnta | H165: 531 | I165: 0 | J165: 0 | K165: 2015-03-03 | L165: 2016-03-02 | N165: 967
A166: 196 | B166: 14511u | C166: 680 | D166: t1787966 | E166: Edwin Lorenzana | F166: 531 | G166: rnta | H166: 531 | I166: 0 | J166: 0 | K166: 2014-10-23 | L166: 2015-10-22 | N166: 555
A167: 197 | B167: 14511d | C167: 680 | D167: t1790655 | E167: Zoey Ready | F167: 541 | G167: rnta | H167: 551 | I167: 0 | J167: 0 | K167: 2015-05-12 | L167: 2016-05-11 | N167: 0
A168: 198 | B168: 14511u | C168: 680 | D168: t1791559 | E168: William Geurin | F168: 531 | G168: rnta | H168: 531 | I168: 0 | J168: 0 | K168: 2015-07-15 | L168: 2016-07-14 | N168: -15.64
A169: 199 | B169: 14511d | C169: 680 | D169: t1783997 | E169: Brenda Griffin | F169: 541 | G169: watr | H169: 24 | I169: 0 | J169: 0 | K169: 2014-03-30 | L169: 2016-03-29 | N169: 0
A170: 200 | B170: 14511u | C170: 680 | D170: t1790248 | E170: Donae Stroud | F170: 531 | G170: rnta | H170: 551 | I170: 0 | J170: 0 | K170: 2015-04-10 | L170: 2016-04-09 | N170: 665
A171: 201 | B171: 14511d | C171: 680 | D171: t1791176 | E171: Alondra Romero | F171: 541 | G171: rnta | H171: 541 | I171: 0 | J171: 0 | K171: 2015-07-01 | L171: 2016-06-30 | N171: 0
A172: 202 | B172: 14511u | C172: 680 | D172: t1788857 | E172: Mark Cohn | F172: 531 | G172: rnta | H172: 531 | I172: 0 | J172: 0 | K172: 2014-12-02 | L172: 2015-12-01 | N172: 0
A173: 203 | B173: 14511d | C173: 680 | D173: t1790308 | E173: Derriesha Newton | F173: 541 | G173: rnta | H173: 561 | I173: 0 | J173: 0 | K173: 2015-04-10 | L173: 2016-04-09 | N173: 585
A174: 204 | B174: 14511u | C174: 680 | D174: t1789099 | E174: Victoria King | F174: 531 | G174: rnta | H174: 531 | I174: 0 | J174: 0 | K174: 2014-12-19 | L174: 2015-10-18 | N174: 645
A175: 206 | B175: 14511u | C175: 680 | D175: t1789335 | E175: Ti'Anna Magee | F175: 531 | G175: rnta | H175: 531 | I175: 0 | J175: 0 | K175: 2015-02-27 | L175: 2016-02-23 | N175: 645
A176: 207 | B176: 14511d | C176: 680 | D176: t1790478 | E176: Mary Robinson | F176: 541 | G176: rnta | H176: 541 | I176: 0 | J176: 0 | K176: 2015-04-17 | L176: 2016-04-16 | N176: 564.67
A177: 208 | B177: 14511u | C177: 680 | D177: t1786840 | E177: LaVonde Thompson | F177: 531 | G177: watr | H177: 24 | I177: 0 | J177: 0 | K177: 2014-09-02 | L177: 2016-09-01 | N177: 587.5
A178: 209 | B178: 14511d | C178: 680 | D178: t1791054 | E178: Stanley Clark Jr. | F178: 541 | G178: rnta | H178: 541 | I178: 0 | J178: 0 | K178: 2015-06-09 | L178: 2016-06-08 | N178: 565
A179: 210 | B179: 14511u | C179: 680 | D179: t1775108 | E179: Estrella Costa | F179: 531 | G179: watr | H179: 24 | I179: 450 | J179: 0 | K179: 2011-08-13 | L179: 2016-04-01 | N179: 0
A180: 211 | B180: 14511d | C180: 680 | D180: t1791524 | E180: Bob Samuel | F180: 541 | G180: rnta | H180: 541 | I180: 0 | J180: 0 | K180: 2015-08-12 | L180: 2016-05-11 | N180: 18.84
A181: 212 | B181: 14511u | C181: 680 | D181: t1775110 | E181: Jose Joven | F181: 531 | G181: preemp | H181: -49 | I181: 0 | J181: 0 | K181: 2013-01-20 | L181: 2016-01-21 | N181: 0
A182: 213 | B182: 14511d | C182: 680 | D182: t1786090 | E182: Enrique Valtierra | F182: 541 | G182: watr | H182: 24 | I182: 0 | J182: 0 | K182: 2014-08-01 | L182: 2016-07-31 | N182: 565
A183: 214 | B183: 14511u | C183: 680 | D183: t1787879 | E183: Roneisha Melton | F183: 531 | G183: rnta | H183: 531 | I183: 0 | J183: 0 | K183: 2014-10-31 | L183: 2015-10-30 | N183: 554
A184: 215 | B184: 14511d | C184: 680 | D184: t1788806 | E184: Neville Yong Koon | F184: 541 | G184: rnta | H184: 541 | I184: 0 | J184: 0 | K184: 2014-12-30 | L184: 2015-12-29 | N184: 0
A185: 216 | B185: 14511u | C185: 680 | D185: t1790011 | E185: Juan Alvarado | F185: 531 | G185: watr | H185: 24 | I185: 0 | J185: 0 | K185: 2015-03-04 | L185: 2015-09-01 | M185: 2015-09-10 | N185: 286
A186: 217 | B186: 14511d | C186: 680 | D186: t1790598 | E186: Marisa Palmer | F186: 541 | G186: rnta | H186: 571 | I186: 0 | J186: 0 | K186: 2015-05-02 | L186: 2016-02-01 | N186: 685
A187: 218 | B187: 14511u | C187: 680 | D187: t1781417 | E187: Criselda LLamzon | F187: 531 | G187: watr | H187: 24 | I187: 0 | J187: 0 | K187: 2013-11-15 | L187: 2015-12-18 | N187: 100
A188: 219 | B188: 14511d | C188: 680 | D188: t1775116 | E188: Eric Kramer | F188: 541 | G188: watr | H188: 24 | I188: 0 | J188: 0 | K188: 2011-11-11 | L188: 2015-11-06 | N188: 0
A189: 221 | B189: 14511d | C189: 680 | D189: t1789666 | E189: Anika Secrease | F189: 541 | G189: rnta | H189: 541 | I189: 0 | J189: 0 | K189: 2015-02-10 | L189: 2016-02-09 | N189: 565
A190: 222 | B190: 14511u | C190: 680 | D190: t1775119 | E190: Isabel Flores-Herrera | F190: 531 | G190: watr | H190: 24 | I190: 0 | J190: 0 | K190: 2008-11-01 | L190: 2016-02-06 | N190: 0
A191: 223 | B191: 14511d | C191: 680 | D191: t1775120 | E191: Roland Domigpe | F191: 541 | G191: watr | H191: 24 | I191: 0 | J191: 0 | K191: 2010-01-18 | L191: 2016-04-29 | N191: 0
A192: 224 | B192: 14511u | C192: 680 | D192: t1775121 | E192: Ida Medwood | F192: 531 | G192: watr | H192: 24 | I192: 0 | J192: 0 | K192: 2010-11-01 | L192: 2015-10-10 | N192: 0
A193: 225 | B193: 14511d | C193: 680 | D193: t1790090 | E193: Michael Schurig | F193: 541 | G193: rnta | H193: 541 | I193: 0 | J193: 0 | K193: 2015-03-16 | L193: 2015-12-15 | N193: 0
A194: 226 | B194: 14511u | C194: 680 | D194: t1787395 | E194: Carole Fisher | F194: 531 | G194: rnta | H194: 531 | I194: 0 | J194: 0 | K194: 2014-09-26 | L194: 2015-09-25 | M194: 2015-09-26 | N194: -70.47
A195: 227 | B195: 14511d | C195: 680 | D195: t1790419 | E195: Jeffery Sexton | F195: 541 | G195: rnta | H195: 541 | I195: 0 | J195: 0 | K195: 2015-04-20 | L195: 2015-10-19 | N195: 210
A196: 228 | B196: 14511u | C196: 680 | D196: t1791016 | E196: Terrence Hill | F196: 531 | G196: rnta | H196: 531 | I196: 0 | J196: 0 | K196: 2015-06-05 | L196: 2016-03-04 | N196: 669.08
A197: 229 | B197: 14511d | C197: 680 | D197: t1775125 | E197: Angelito Aguilera | F197: 541 | G197: watr | H197: 24 | I197: 0 | J197: 0 | K197: 2012-05-30 | L197: 2016-05-30 | N197: 0
A198: 230 | B198: 14511u | C198: 680 | D198: t1791049 | E198: Rochelle Fernandes | F198: 531 | G198: rnta | H198: 531 | I198: 0 | J198: 0 | K198: 2015-06-05 | L198: 2016-06-04 | N198: 555
A199: 231 | B199: 14511d | C199: 680 | D199: t1789811 | E199: Amy Galenzoga | F199: 541 | G199: rnta | H199: 541 | I199: 0 | J199: 0 | K199: 2015-02-18 | L199: 2016-02-17 | N199: 0
A200: 232 | B200: 14511u | C200: 680 | D200: t1790810 | E200: Alexander Monroy | F200: 531 | G200: rnta | H200: 531 | I200: 0 | J200: 0 | K200: 2015-06-02 | L200: 2016-06-01 | N200: 0
... 82 more rows
